bitfinex-derivatives/quotes_SOLF0:USTF0_20250505
["timestamp","ask_amount","ask_price","bid_price","bid_amount"]
[1746452112423,1.38446628,144.46,144.36,30.8689]
[1746452112725,1.9838,144.45,144.36,28.86]
[1746452112923,1.9838,144.45,144.33,28.86]
[1746452113123,1.9838,144.45,144.33,59.28933458]
[1746452113325,6.9246,144.41,144.38,6.9253]
[1746452113721,1.9838,144.45,144.33,59.28933458]
[1746452114023,6.9246,144.41,144.33,59.28933458]
[1746452114222,1.38446628,144.46,144.33,59.28933458]
[1746452114524,6.9234,144.43,144.33,59.28933458]
[1746452114923,6.924,144.42,144.39,6.925]
[1746452115316,6.924,144.42,144.37,28.86]
[1746452115317,1.38446628,144.46,144.37,28.86]
[1746452115520,6.9247,144.41,144.37,6.9259]
[1746452115721,6.9247,144.41,144.34,28.86]
[1746452116021,1.38446628,144.46,144.34,28.86]
[1746452116227,359.0,144.45,144.34,28.86]
[1746452116529,6.9259,144.38,144.36,6.9265]
[1746452116732,28.86,144.42,144.36,6.9265]
[1746452117027,28.86,144.42,144.34,28.86]
[1746452117532,3.9279,144.41,144.32,2.0131]
[1746452117924,6.9254,144.39,144.37,6.9262]
[1746452118124,3.9279,144.41,144.32,2.0131]
[1746452118325,35.7841,144.42,144.39,6.925]
[1746452118629,35.7841,144.42,144.35,28.86]
[1746452118830,6.9245,144.41,144.38,6.9254]
[1746452119130,387.86,144.45,144.35,28.86]
[1746452119328,389.9712,144.45,144.35,28.86]
[1746452119533,6.9253,144.4,144.37,6.9261]
[1746452120030,391.3186,144.45,144.35,28.86]
[1746452120232,387.86,144.45,144.35,28.86]
[1746452120432,387.86,144.45,144.36,2.0027]
[1746452120631,387.86,144.45,144.41,6.924]
[1746452120826,28.86,144.45,144.41,6.924]
[1746452121024,28.86,144.45,144.36,2.0027]
[1746452121219,35.7826,144.45,144.42,6.9235]
[1746452121431,6.9226,144.45,144.42,6.9235]
[1746452121621,8.30666628,144.46,144.43,6.9233]
[1746452121828,1.38446628,144.46,144.39,29.16]
[1746452122023,1.38446628,144.46,144.4,4.2394]
[1746452122726,36.0798,144.51,144.41,30.42933458]
[1746452123032,29.16,144.51,144.41,30.42933458]
[1746452123232,29.16,144.51,144.42,2.1011]
[1746452123434,29.16,144.51,144.43,29.16]
[1746452123634,577.7,144.54,144.43,29.16]
[1746452123839,577.7,144.54,144.47,6.9212]
[1746452124330,29.16,144.54,144.48,6.9208]
[1746452124533,29.16,144.54,144.43,29.16]
[1746452125031,29.16,144.54,144.46,6.9216]
[1746452125230,29.16,144.54,144.43,29.16]
[1746452125431,6.9199,144.51,144.47,6.9212]
[1746452125631,29.16,144.54,144.44,30.42933458]
[1746452125933,6.9198,144.51,144.44,30.42933458]
[1746452126233,29.16,144.54,144.47,6.9212]
[1746452126432,29.16,144.54,144.44,30.42933458]
[1746452126634,29.16,144.54,144.43,29.16]
[1746452127037,6.9222,144.46,144.43,29.16]
[1746452127235,3.4578,144.53,144.43,29.16]
[1746452127538,3.4578,144.53,144.44,6.9229]
[1746452127736,3.4578,144.53,144.43,29.16]
[1746452128137,3.4578,144.53,144.45,6.9223]
[1746452128338,3.4578,144.53,144.43,29.16]
[1746452128538,2.1207,144.52,144.43,29.16]
[1746452129234,6.9208,144.49,144.43,29.16]
[1746452129738,6.9202,144.5,144.46,6.9215]
[1746452129935,2.1091,144.53,144.43,29.16]
[1746452130242,29.16,144.54,144.43,29.16]
[1746452130739,6.9193,144.52,144.49,6.9205]
[1746452130937,29.16,144.54,144.43,29.16]
[1746452131237,6.9192,144.52,144.43,29.16]
[1746452131440,29.16,144.54,144.43,29.16]
[1746452131739,6.9192,144.52,144.49,6.9204]
[1746452131939,29.16,144.54,144.49,6.9204]
[1746452132338,6.9189,144.53,144.49,6.9204]
[1746452132537,29.16,144.54,144.49,6.9204]
[1746452132934,29.16,144.54,144.5,6.9199]
[1746452133439,29.14,144.57,144.47,29.14]
[1746452133640,29.14,144.57,144.48,33.3892]
[1746452134739,29.14,144.57,144.48,52.09670466]
[1746452134940,361.1003,144.59,144.49,2.0492]
[1746452135137,6.9174,144.56,144.52,6.9188]
[1746452135740,6.9174,144.56,144.53,6.9184]
[1746452136445,6.9169,144.57,144.54,6.9181]
[1746452136639,29.14,144.6,144.49,2.0492]
[1746452136847,6.9164,144.58,144.55,6.9174]
[1746452137144,29.14,144.6,144.52,29.14]
[1746452137343,36.0555,144.6,144.57,6.9163]
[1746452137846,6.9162,144.58,144.56,6.917]
[1746452138144,29.14,144.6,144.52,29.14]
[1746452138443,548.52,144.61,144.52,29.14]
[1746452138444,388.14,144.63,144.52,29.14]
[1746452138639,6.916,144.59,144.56,6.9169]
[1746452139141,6.916,144.59,144.57,6.9166]
[1746452139341,6.9155,144.6,144.52,29.14]
[1746452139541,388.14,144.63,144.52,29.14]
[1746452139742,388.14,144.63,144.59,6.9157]
[1746452139942,29.14,144.63,144.52,29.14]
[1746452140246,29.14,144.63,144.58,6.916]
[1746452140442,6.9152,144.61,144.58,6.916]
[1746452140644,29.14,144.63,144.52,29.14]
[1746452141340,29.14,144.63,144.57,6.9163]
[1746452141550,6.9145,144.62,144.52,29.14]
[1746452142045,6.9148,144.61,144.58,6.916]
[1746452142645,6.9153,144.6,144.57,6.9165]
[1746452142847,29.14,144.63,144.56,29.14]
[1746452143144,6.9156,144.6,144.57,6.9165]
[1746452143444,29.14,144.63,144.56,29.14]
[1746452143741,29.14,144.63,144.57,6.9165]
[1746452144041,47.84750466,144.63,144.49,2.0492]
[1746452144243,359.0,144.62,144.5,29.12]
[1746452144645,1.9953,144.61,144.5,29.12]
[1746452145550,6.9159,144.59,144.56,6.9167]
[1746452145748,29.12,144.59,144.49,2.0492]
[1746452146051,6.9171,144.56,144.51,6.9192]
[1746452146242,6.9171,144.56,144.49,2.0492]
[1746452146243,29.12,144.59,144.49,2.0492]
[1746452146550,6.9165,144.58,144.49,2.0492]
[1746452146747,29.12,144.59,144.49,2.0492]
[1746452147050,36.0359,144.59,144.55,6.9173]
[1746452147244,29.12,144.59,144.55,6.9173]
[1746452147547,29.12,144.59,144.52,29.12]
[1746452147749,6.9174,144.56,144.53,6.9183]
[1746452147941,29.12,144.59,144.52,29.12]
[1746452148143,29.12,144.59,144.49,31.1692]
[1746452148437,6.9174,144.56,144.49,31.1692]
[1746452148642,29.12,144.59,144.49,29.12]
[1746452149249,6.9183,144.54,144.5,6.9197]
[1746452149451,29.12,144.59,144.49,29.12]
[1746452149846,6.9183,144.54,144.49,29.12]
[1746452150151,29.12,144.59,144.49,29.12]
[1746452150350,6.9181,144.54,144.49,29.12]
[1746452150845,6.9177,144.55,144.51,6.9192]
[1746452151050,29.56,144.55,144.46,5.39947]
[1746452151253,29.56,144.55,144.46,9.59907]
[1746452151552,29.56,144.55,144.5,6.9196]
[1746452151846,29.56,144.55,144.46,9.59907]
[1746452152052,36.4778,144.55,144.46,9.59907]
[1746452152246,29.56,144.55,144.46,9.59907]
[1746452152550,36.4779,144.55,144.51,6.9193]
[1746452152954,29.56,144.55,144.46,9.59907]
[1746452153351,6.9186,144.53,144.5,6.9197]
[1746452154155,29.56,144.55,144.46,9.59907]
[1746452154350,6.9188,144.53,144.46,9.59907]
[1746452154651,29.56,144.55,144.51,1.0]
[1746452154857,36.4777,144.55,144.52,6.9188]
[1746452155253,6.9177,144.55,144.52,6.9188]
[1746452156257,6.9169,144.57,144.51,1.0]
[1746452156451,29.56,144.58,144.51,1.0]
[1746452156948,6.9159,144.59,144.52,2.1581]
[1746452157153,29.56,144.61,144.54,6.9178]
[1746452157355,29.56,144.61,144.53,31.561]
[1746452157856,6.9153,144.6,144.57,6.9164]
[1746452158555,6.9153,144.6,144.58,6.9162]
[1746452158958,6.9153,144.6,144.53,31.561]
[1746452159258,6.9153,144.6,144.58,6.9162]
[1746452159457,29.56,144.61,144.53,31.561]
[1746452159755,31.5668,144.64,144.58,6.916]
[1746452159957,6.9151,144.61,144.53,31.561]
[1746452160165,31.5668,144.64,144.53,31.561]
[1746452160858,31.5668,144.64,144.58,6.9159]
[1746452161063,6.9151,144.61,144.53,31.561]
[1746452161265,31.5668,144.64,144.53,31.561]
[1746452161469,6.9149,144.61,144.53,31.561]
[1746452161671,31.5668,144.64,144.53,31.561]
[1746452161962,6.9148,144.61,144.53,31.561]
[1746452162470,31.5668,144.64,144.57,6.9164]
[1746452162669,31.5668,144.64,144.53,31.561]
[1746452163171,31.5668,144.64,144.56,6.9171]
[1746452163373,31.5668,144.64,144.53,31.561]
[1746452164169,18.70750466,144.63,144.53,31.561]
[1746452164369,18.70750466,144.63,144.53,29.56]
[1746452164673,18.70750466,144.6,144.51,1.0]
[1746452164867,32.8903,144.59,144.51,1.0]
[1746452165273,6.9191,144.52,144.51,1.0]
[1746452167575,6.9189,144.53,144.51,1.0]
[1746452167766,29.56,144.55,144.51,1.0]
[1746452168672,6.9191,144.52,144.51,1.0]
[1746452169772,29.56,144.55,144.51,7.9192]
[1746452170174,29.56,144.55,144.51,1.0]
[1746452170674,6.9191,144.52,144.51,1.0]
[1746452172678,6.921,144.48,144.47,15.9195]
[1746452172973,18.70750466,144.48,144.34,8.13983843]
[1746452173174,6.9247,144.41,144.34,4.0683]
[1746452173475,29.56,144.43,144.34,4.0683]
[1746452173878,29.56,144.43,144.36,6.9266]
[1746452174072,29.56,144.43,144.34,4.0683]
[1746452174776,6.9251,144.4,144.34,4.0683]
[1746452174970,29.56,144.43,144.36,6.9266]
[1746452175275,6.9244,144.41,144.36,6.9266]
[1746452175776,6.9244,144.41,144.37,6.9262]
[1746452176078,29.56,144.43,144.34,4.0683]
[1746452176275,29.56,144.43,144.36,6.9265]
[1746452176576,6.9247,144.41,144.36,6.9265]
[1746452176768,359.0,144.46,144.34,4.0683]
[1746452176970,359.0,144.46,144.35,48.28750466]
[1746452177480,6.9225,144.45,144.35,48.28750466]
[1746452177775,359.0,144.46,144.35,48.28750466]
[1746452177963,29.58,144.45,144.35,48.28750466]
[1746452178164,359.0,144.46,144.35,48.28750466]
[1746452178771,6.9215,144.47,144.35,48.28750466]
[1746452179270,6.9215,144.47,144.43,6.9231]
[1746452179476,6.9215,144.47,144.35,48.28750466]
[1746452179477,577.6,144.48,144.39,29.58]
[1746452179776,359.0,144.47,144.35,29.58]
[1746452180274,359.0,144.47,144.37,6.926]
[1746452180475,359.0,144.47,144.35,29.58]
[1746452180774,359.0,144.47,144.38,6.9254]
[1746452180978,6.9236,144.43,144.35,29.58]
[1746452181274,359.0,144.47,144.35,29.58]
[1746452181476,6.9232,144.44,144.35,29.58]
[1746452181676,29.2,144.44,144.35,29.58]
[1746452181973,6.9252,144.4,144.36,6.9263]
[1746452182175,29.2,144.44,144.35,29.58]
[1746452182667,6.9247,144.41,144.38,6.9257]
[1746452182874,29.2,144.44,144.35,29.58]
[1746452183176,6.9251,144.4,144.37,6.9261]
[1746452183567,29.2,144.44,144.35,29.58]
[1746452183771,29.2,144.44,144.39,6.9253]
[1746452184175,6.9242,144.42,144.39,6.9253]
[1746452184375,29.2,144.44,144.35,29.58]
[1746452184874,29.2,144.44,144.34,4.0683]
[1746452185481,6.9256,144.39,144.36,6.9266]
[1746452185681,29.2,144.44,144.34,2.0525]
[1746452185982,18.70750466,144.42,144.32,44.41075]
[1746452186379,6.9257,144.39,144.35,6.9272]
[1746452186579,29.22,144.39,144.35,6.9272]
[1746452187178,29.22,144.39,144.32,44.41075]
[1746452187486,29.22,144.39,144.32,15.19075]
[1746452187680,29.22,144.39,144.35,6.9271]
[1746452187980,29.22,144.39,144.32,15.19075]
[1746452188175,36.1455,144.39,144.32,17.22235]
[1746452188379,29.22,144.42,144.33,29.22]
[1746452189185,47.92750466,144.42,144.33,29.22]
[1746452189483,47.92750466,144.42,144.32,15.19075]
[1746452189880,6.9267,144.37,144.33,6.9281]
[1746452190084,6.9267,144.37,144.32,15.19075]
[1746452190277,29.22,144.38,144.32,15.19075]
[1746452190474,6.927,144.36,144.32,15.19075]
[1746452190674,29.22,144.38,144.32,15.19075]
[1746452190873,29.22,144.38,144.32,13.07295]
[1746452191076,6.9282,144.33,144.32,13.07295]
[1746452191785,6.9306,144.28,144.24,1.9664]
[1746452191974,6.9306,144.28,144.24,8.8987]
[1746452192387,29.22,144.34,144.24,1.9664]
[1746452192687,377.70750466,144.33,144.21,1.0]
[1746452193193,377.70750466,144.33,144.22,6.9332]
[1746452193381,6.9313,144.27,144.22,6.9332]
[1746452193989,29.22,144.28,144.21,1.0]
[1746452194486,36.1509,144.28,144.23,6.9325]
[1746452194688,29.22,144.28,144.21,1.0]
[1746452195094,6.9335,144.22,144.21,1.0]
[1746452196387,29.22,144.24,144.21,1.0]
[1746452197384,29.22,144.24,144.22,6.9335]
[1746452197584,29.22,144.24,144.21,1.0]
[1746452197988,29.22,144.24,144.23,6.933]
[1746452198181,29.22,144.24,144.21,1.0]
[1746452198485,36.1529,144.24,144.21,1.0]
[1746452198790,29.22,144.24,144.21,1.0]
[1746452199087,6.9335,144.22,144.21,1.0]
[1746452199291,29.22,144.24,144.21,1.0]
[1746452200186,6.9335,144.22,144.21,1.0]
[1746452201491,29.22,144.24,144.16,32.55935374]
[1746452203191,6.9337,144.22,144.19,6.9346]
[1746452203390,6.9337,144.22,144.16,32.55935374]
[1746452203691,29.22,144.24,144.16,32.55935374]
[1746452204292,6.9338,144.22,144.18,6.935]
[1746452204591,6.9338,144.22,144.16,32.55935374]
[1746452205392,6.9332,144.23,144.16,32.55935374]
[1746452205696,29.22,144.24,144.16,32.55935374]
[1746452206501,6.9346,144.2,144.16,32.55935374]
[1746452206793,29.22,144.24,144.16,32.55935374]
[1746452207192,59.75624568,144.24,144.16,32.55935374]
[1746452208192,59.75624568,144.24,144.14,4.1005]
[1746452208193,29.22,144.24,144.14,4.1005]
[1746452208389,359.0,144.26,144.15,29.26]
[1746452208591,6.9328,144.24,144.21,6.9338]
[1746452208790,29.26,144.26,144.21,6.9338]
[1746452209092,6.9329,144.24,144.21,6.9338]
[1746452209293,29.26,144.3,144.2,30.53624568]
[1746452209592,29.26,144.3,144.21,35.2446]
[1746452210189,6.9292,144.31,144.23,30.53624568]
[1746452210799,6.9297,144.3,144.27,6.9307]
[1746452211096,29.26,144.33,144.25,29.26]
[1746452211997,8.23511,144.32,144.26,30.53624568]
[1746452212195,4.97581,144.32,144.26,30.53624568]
[1746452212396,4.97581,144.32,144.31,6.9291]
[1746452212595,4.97581,144.32,144.26,30.53624568]
[1746452214298,11.90461,144.32,144.29,6.9301]
[1746452214989,4.97581,144.32,144.3,6.9296]
[1746452215194,4.97581,144.32,144.29,29.0]
[1746452215395,1.71651,144.32,144.29,29.0]
[1746452215589,29.02,144.36,144.29,29.0]
[1746452215794,29.02,144.36,144.3,6.9293]
[1746452215998,29.02,144.36,144.29,29.0]
[1746452216194,29.0,144.39,144.29,29.0]
[1746452216697,6.9263,144.37,144.29,29.0]
[1746452216895,549.12,144.43,144.3,18.75535942]
[1746452217092,549.12,144.43,144.3,20.76515942]
[1746452217295,29.0,144.44,144.38,6.9257]
[1746452217596,29.0,144.44,144.35,29.0]
[1746452217793,6.9236,144.43,144.39,6.9249]
[1746452217996,29.0,144.44,144.35,29.0]
[1746452218294,29.0,144.44,144.38,6.9257]
[1746452218797,7.08114,144.4,144.37,6.9261]
[1746452218997,7.08114,144.4,144.35,29.0]
[1746452219900,6.926,144.38,144.35,29.0]
[1746452220101,7.08114,144.4,144.35,29.0]
[1746452220500,6.926,144.38,144.34,6.9274]
[1746452220699,7.08114,144.4,144.32,31.0552]
[1746452220900,6.9268,144.36,144.32,37.9835]
[1746452221096,36.08114,144.4,144.32,29.0]
[1746452221404,6.9261,144.38,144.34,6.9275]
[1746452221601,36.08114,144.4,144.32,29.0]
[1746452221803,36.08114,144.4,144.33,2.0552]
[1746452222102,6.9268,144.36,144.33,2.0552]
[1746452222301,6.9268,144.36,144.32,35.9285]
[1746452222604,6.9265,144.37,144.33,6.9281]
[1746452222796,36.08114,144.4,144.32,29.0]
[1746452223206,6.9265,144.37,144.34,6.9276]
[1746452223403,36.08114,144.4,144.32,29.0]
[1746452224005,6.9263,144.37,144.34,6.9276]
[1746452224200,36.08114,144.4,144.32,29.0]
[1746452225098,6.927,144.36,144.32,35.9286]
[1746452225498,36.08114,144.4,144.32,29.0]
[1746452226698,36.08114,144.4,144.34,6.9275]
[1746452226898,36.08114,144.4,144.32,29.0]
[1746452227099,36.08114,144.4,144.31,2.0794]
[1746452227899,7.08114,144.4,144.31,2.0794]
[1746452230700,7.08114,144.4,144.39,6.9253]
[1746452231800,28.98,144.47,144.44,6.9227]
[1746452232005,28.98,144.47,144.4,28.98]
[1746452233095,28.98,144.47,144.38,2.0784]
[1746452233398,4.0667,144.46,144.38,2.0784]
[1746452233594,4.0667,144.46,144.39,6.9251]
[1746452234307,4.0667,144.46,144.37,28.98]
[1746452234607,6.1872,144.46,144.37,28.98]
[1746452235002,6.9241,144.42,144.39,6.925]
[1746452235202,6.1872,144.46,144.37,28.98]
[1746452235404,4.0667,144.46,144.37,28.98]
[1746452235708,6.9226,144.45,144.37,28.98]
[1746452235905,28.98,144.47,144.37,28.98]
[1746452236409,363.2331,144.49,144.37,28.98]
[1746452237306,363.2331,144.49,144.39,6.9248]
[1746452237809,363.2331,144.49,144.37,28.98]
[1746452238011,6.9232,144.44,144.4,6.9244]
[1746452238208,363.2331,144.49,144.4,6.9244]
[1746452238608,363.2331,144.49,144.37,28.98]
[1746452239506,4.2331,144.49,144.37,28.98]
[1746452239700,6.9227,144.45,144.37,47.70205011]
[1746452240205,6.9222,144.46,144.43,6.923]
[1746452240508,578.0,144.5,144.41,28.98]
[1746452240705,6.9213,144.48,144.45,6.9222]
[1746452240905,28.98,144.5,144.43,2.1018]
[1746452241710,6.9224,144.46,144.43,9.0251]
[1746452241910,28.98,144.5,144.43,9.0251]
[1746452242209,6.9223,144.46,144.43,9.0251]
[1746452242510,28.98,144.5,144.43,9.0251]
[1746452242705,6.9229,144.44,144.43,2.1018]
[1746452242913,28.98,144.5,144.39,28.72]
[1746452243411,6.9236,144.43,144.4,6.9244]
[1746452243917,6.9246,144.41,144.39,28.72]
[1746452244107,28.72,144.46,144.36,32.9525]
[1746452244508,6.9241,144.42,144.36,32.9525]
[1746452244708,28.72,144.46,144.36,32.9525]
[1746452245313,18.72205011,144.5,144.36,32.9525]
[1746452245314,359.0,144.51,144.37,18.72205011]
[1746452245613,6.9212,144.48,144.45,6.9221]
[1746452246004,6.9207,144.49,144.46,6.9218]
[1746452246311,28.72,144.51,144.43,28.72]
[1746452247314,6.9211,144.48,144.45,6.922]
[1746452247714,6.9211,144.48,144.43,28.72]
[1746452248107,6.9206,144.49,144.43,28.72]
[1746452248309,6.9206,144.49,144.44,1.9792]
[1746452248505,6.9202,144.5,144.44,1.9792]
[1746452248709,28.72,144.51,144.44,1.9792]
[1746452248916,28.72,144.54,144.44,4.1275]
[1746452249117,6.9201,144.5,144.48,6.9209]
[1746452249415,28.72,144.54,144.44,4.1275]
[1746452249619,6.9198,144.51,144.48,6.9207]
[1746452249814,28.72,144.54,144.44,4.1275]
[1746452250217,28.72,144.54,144.5,6.9198]
[1746452250616,28.72,144.54,144.49,6.9203]
[1746452251320,6.9194,144.52,144.5,6.92]
[1746452251819,6.9196,144.51,144.48,6.9209]
[1746452252013,28.72,144.54,144.48,6.9209]
[1746452252618,28.72,144.54,144.49,6.9203]
[1746452253117,28.72,144.54,144.47,35.6413]
[1746452253520,28.72,144.54,144.44,32.8475]
[1746452253720,28.72,144.54,144.46,6.9216]
[1746452254421,6.9201,144.5,144.47,6.9214]
[1746452254624,28.72,144.54,144.47,6.9214]
[1746452255016,6.9193,144.52,144.47,6.9214]
[1746452255418,6.9193,144.52,144.48,6.9208]
[1746452255621,6.9197,144.51,144.44,32.8475]
[1746452255820,6.9197,144.51,144.44,30.6992]
[1746452256017,28.72,144.54,144.44,28.72]
[1746452256222,30.41258458,144.53,144.41,32.8865]
[1746452256417,30.41258458,144.53,144.46,6.9219]
[1746452256723,6.9203,144.5,144.41,32.8865]
[1746452256925,28.7,144.5,144.41,32.8865]
[1746452257425,6.9206,144.49,144.41,32.8865]
[1746452258020,35.6203,144.5,144.47,6.9211]
[1746452258228,28.7,144.5,144.41,32.8865]
[1746452258413,28.7,144.5,144.41,28.72]
[1746452258619,6.9217,144.47,144.39,28.7]
[1746452259123,10.991,144.49,144.46,6.9217]
[1746452259322,10.991,144.49,144.39,28.7]
[1746452259523,4.0702,144.49,144.39,28.7]
[1746452259725,4.0702,144.49,144.45,6.9224]
[1746452260226,6.9215,144.47,144.45,6.9224]
[1746452260428,4.0702,144.49,144.39,28.7]
[1746452260932,6.9216,144.47,144.39,28.7]
[1746452261629,6.9216,144.47,144.44,6.9225]
[1746452261829,6.9216,144.47,144.39,28.7]
[1746452262131,4.0702,144.49,144.39,28.7]
[1746452262323,4.0702,144.49,144.46,6.9215]
[1746452262525,6.9224,144.46,144.39,28.7]
[1746452262925,6.9224,144.46,144.43,6.923]
[1746452263232,6.9224,144.46,144.39,28.7]
[1746452263426,4.0702,144.49,144.39,28.7]
[1746452263729,30.8241,144.48,144.39,28.7]
[1746452264028,30.8241,144.48,144.39,6.925]
[1746452264229,30.8241,144.48,144.36,30.7288]
[1746452264527,61.23668458,144.48,144.36,30.7288]
[1746452264928,6.9234,144.43,144.4,6.9245]
[1746452265231,6.9234,144.43,144.36,30.7288]
[1746452265432,6.9239,144.42,144.38,6.9255]
[1746452265730,6.9239,144.42,144.36,30.7288]
[1746452266032,6.9239,144.42,144.39,6.925]
[1746452266331,61.23668458,144.48,144.36,30.7288]
[1746452266927,6.9242,144.42,144.36,30.7288]
[1746452267124,28.72,144.44,144.36,30.7288]
[1746452267435,6.9222,144.46,144.38,30.41258458]
[1746452267734,30.8241,144.48,144.36,30.7288]
[1746452267929,6.9217,144.47,144.44,6.9226]
[1746452268733,30.8241,144.48,144.4,28.72]
[1746452269239,6.9217,144.47,144.44,6.9229]
[1746452269938,35.6412,144.48,144.4,28.72]
[1746452270136,6.9212,144.48,144.41,4.1426]
[1746452270336,6.9219,144.47,144.41,4.1426]
[1746452270538,4.0702,144.49,144.41,4.1426]
[1746452270940,4.0702,144.49,144.44,6.9226]
[1746452271435,6.9212,144.48,144.45,6.9224]
[1746452271740,4.0702,144.49,144.41,4.1426]
[1746452271941,6.9218,144.47,144.44,6.9227]
[1746452272244,4.0702,144.49,144.41,4.1426]
[1746452272438,28.72,144.51,144.41,4.1426]
[1746452273046,28.72,144.51,144.43,6.9232]
[1746452273243,28.72,144.51,144.41,4.1426]
[1746452273639,6.9207,144.49,144.46,6.9217]
[1746452275154,28.72,144.51,144.44,28.04]
[1746452275444,363.2819,144.53,144.45,1.979]
[1746452275644,6.919,144.53,144.5,6.9198]
[1746452276245,6.9192,144.52,144.49,6.9203]
[1746452276447,28.04,144.54,144.45,1.979]
[1746452276849,34.9583,144.54,144.5,6.9198]
[1746452277550,6.9183,144.54,144.5,6.9198]
[1746452277750,6.9187,144.53,144.5,6.9198]
[1746452279155,6.9193,144.52,144.48,28.04]
[1746452279850,6.9193,144.52,144.49,6.9201]
[1746452281953,6.9198,144.51,144.48,34.9609]
[1746452282248,28.02,144.53,144.45,29.999]
[1746452282452,6.9208,144.49,144.46,6.9217]
[1746452282653,28.02,144.53,144.45,29.999]
[1746452282854,28.02,144.53,144.45,30.999]
[1746452283051,6.9199,144.51,144.45,30.999]
[1746452283255,28.02,144.53,144.45,30.999]
[1746452283557,6.9198,144.51,144.49,6.9204]
[1746452283852,28.02,144.53,144.45,30.999]
[1746452284352,6.9195,144.51,144.48,6.9207]
[1746452285354,28.02,144.53,144.45,30.999]
[1746452285556,30.0909,144.56,144.45,30.999]
[1746452285954,6.9208,144.49,144.45,30.999]
[1746452286154,28.02,144.52,144.45,30.999]
[1746452286357,28.02,144.53,144.45,30.999]
[1746452286551,6.9187,144.53,144.45,30.999]
[1746452286857,30.0909,144.56,144.45,30.999]
[1746452287051,6.9185,144.54,144.45,30.999]
[1746452287659,6.9185,144.54,144.51,6.9193]
[1746452288756,6.9186,144.53,144.51,6.9193]
[1746452288957,6.9186,144.53,144.5,6.9199]
[1746452289360,6.9186,144.53,144.45,30.999]
[1746452290162,6.9183,144.54,144.51,6.9193]
[1746452291261,28.02,144.56,144.51,6.9193]
[1746452291262,6.9186,144.53,144.51,6.9193]
[1746452292361,6.9191,144.52,144.5,6.9198]
[1746452292557,28.02,144.56,144.45,30.999]
[1746452292961,6.9188,144.53,144.45,30.999]
[1746452293267,28.02,144.56,144.45,30.999]
[1746452294163,6.9179,144.55,144.52,6.9188]
[1746452294553,28.02,144.56,144.52,6.9188]
[1746452294960,28.02,144.56,144.51,6.9193]
[1746452295265,6.9186,144.53,144.51,6.9193]
[1746452295468,28.02,144.56,144.5,6.92]
[1746452295765,28.02,144.56,144.46,28.02]
[1746452296154,28.02,144.56,144.49,6.9202]
[1746452296765,28.02,144.56,144.48,6.9207]
[1746452296966,6.9203,144.5,144.46,28.02]
[1746452297164,28.02,144.5,144.45,1.0]
[1746452297363,4.1561,144.49,144.45,1.0]
[1746452297565,6.9219,144.46,144.45,1.0]